Cogmind - Beta 12 @@@ ROGUE MODE // 2023.04.27 @ 21:41:29 Player: Mr Goldstein Result: Destroyed by S-27 Virus with Autogun Performance ------------- Evolutions (4) 2000 Regions Visited (6) 1200 Robots Destroyed (0) 0 Value Destroyed (0) 0 Prototype IDs (1) 20 Alien Tech Used (0) 0 Bonus (1825) 1825 TOTAL SCORE: 5045 Bonus ------- Pacifist 1325 Entered DSFs 500 Cogmind --------- Core Integrity 0/850 Matter 260/300 Energy 100/100 System Corruption 0% Temperature Cool (0) Movement Core (50) Location -6/Factory Parts ------- > --- POWER (2) -------- (None) > --- PROPULSION (7) --- (None) > --- UTILITY (4) ------ Improved Signal Interpreter > --- WEAPON (2) ------- (None) > --- INVENTORY (5) ---- Improved Signal Interpreter Improved Signal Interpreter Greatsword Peak State ------------ > --- POWER ------------ (None) > --- PROPULSION ------- Nuclear Pulse Thruster Nuclear Pulse Thruster Nuclear Pulse Thruster > --- UTILITY ---------- Improved Signal Interpreter > --- WEAPON ----------- (None) > --- INVENTORY -------- Improved Signal Interpreter Improved Signal Interpreter Greatsword [Rating: 19] Favorites ----------- Power None Propulsion Cooled Cesium-ion Thruster Flight Unit Cooled Cesium-ion Thruster Utility Improved Signal Interpreter Processor Improved Signal Interpreter Weapon None Build | -11 -10 -9 -8 -7 -7 -6 ------- Run | Jun Mat Mat Mat Fac DSF Fac Slots Evolved 8 | . . 2 2 2 . 2 Power 1 | . . . . 1 . . Propulsion 5 | . . 2 2 . . 1 Utility 2 | . . . . 1 . 1 Weapon . | . . . . . . . Parts Attached 7 | . . . . . 1 6 Power . | . . . . . . . Engine . | . . . . . . . Core . | . . . . . . . Reactor . | . . . . . . . Propulsion 6 | . . . . . . 6 Treads . | . . . . . . . Leg . | . . . . . . . Wheel . | . . . . . . . Hover . | . . . . . . . Flight 6 | . . . . . . 6 Utility 1 | . . . . . 1 . Device . | . . . . . . . Storage . | . . . . . . . Processor 1 | . . . . . 1 . Hackware . | . . . . . . . Protection . | . . . . . . . Artifact . | . . . . . . . Weapon . | . . . . . . . Energy Gun . | . . . . . . . Energy Cannon . | . . . . . . . Ballistic Gun . | . . . . . . . Ballistic Cannon . | . . . . . . . Launcher . | . . . . . . . Special Weapon . | . . . . . . . Impact Weapon . | . . . . . . . Slashing Weapon . | . . . . . . . Piercing Weapon . | . . . . . . . Special Melee Weapon . | . . . . . . . Unidentified Prototypes 1 | . . . . . . 1 Parts Lost 6 | . . . . . . 6 Power . | . . . . . . . Propulsion 6 | . . . . . . 6 Utility . | . . . . . . . Weapon . | . . . . . . . Highest Loss Streak 5 | . . . . . . 5 To Critical Strikes . | . . . . . . . Average Slot Usage (%) 6 | . . . . . 3 15 Flight 3 | . . . . . . 8 Processor 2 | . . . . . 3 6 Naked Turns 183 | . 31 85 51 9 7 . Heaviest Build . | . . . . . . . Greatest Support 12 | 3 3 3 3 3 3 12 Greatest Overweight (x) . | . . . . . . . Average Overweight (x) . | . . . . . . . Largest Inventory Capacity 5 | 5 5 5 5 5 5 5 Average Capacity 5 | 5 5 5 5 5 5 5 Most Carried 4 | . . 3 4 4 4 4 Average Carried 2 | . . 1 3 4 3 4 Final Capacity 5 | 5 5 5 5 5 5 5 Final Carried 4 | . . 3 4 4 4 4 Class Distribution -------------------- 100% | Mutant Dominant Class ---------------- Mutant | -10/Materials Mutant | -9/Materials Mutant | -8/Materials Mutant | -7/Factory Mutant | -7/DSF Mutant | -6/Factory Resources | -11 -10 -9 -8 -7 -7 -6 ----------- Run | Jun Mat Mat Mat Fac DSF Fac Matter Collected 173 | 173 . . . . . . Remotely . | . . . . . . . Salvage Created . | . . . . . . . Parts . | . . . . . . . Haulers Intercepted . | . . . . . . . Recyclers Shooed . | . . . . . . . Parts Field Recycled . | . . . . . . . Retrieved Matter . | . . . . . . . Parts Self-Destructed . | . . . . . . . Prevented . | . . . . . . . Kills | -11 -10 -9 -8 -7 -7 -6 ------- Run | Jun Mat Mat Mat Fac DSF Fac Combat Hostiles Destroyed . | . . . . . . . Classes Destroyed . | . . . . . . . Best Kill Streak . | . . . . . . . Combat Bots Only . | . . . . . . . Max Kills in Single Turn . | . . . . . . . Gunslinging . | . . . . . . . Exploded . | . . . . . . . Melee . | . . . . . . . Uniques/NPCs Destroyed . | . . . . . . . Combat | -11 -10 -9 -8 -7 -7 -6 -------- Run | Jun Mat Mat Mat Fac DSF Fac Damage Taken 1623 | . 68 226 181 . 61 1087 Core 1397 | . 68 226 181 . 61 861 Absorbed by Shields 81 | . . . . . . 81 Core Remaining (%) 74 | 100 72 43 67 . 91 . Volleys Fired . | . . . . . . . Largest . | . . . . . . . Hottest . | . . . . . . . Shots Fired . | . . . . . . . Gun . | . . . . . . . Cannon . | . . . . . . . Launcher . | . . . . . . . Special . | . . . . . . . Kinetic . | . . . . . . . Thermal . | . . . . . . . Explosive . | . . . . . . . Electromagnetic . | . . . . . . . Robot Hit Streak . | . . . . . . . Robot Miss Streak . | . . . . . . . Penetration Max . | . . . . . . . Secondary Targets . | . . . . . . . Shots Hit Robots . | . . . . . . . Core Hits 2 | . . 2 . . . . Critical Kills . | . . . . . . . Critical Parts Destroyed . | . . . . . . . Critical Strikes . | . . . . . . . Melee Attacks . | . . . . . . . Impact . | . . . . . . . Slashing . | . . . . . . . Piercing . | . . . . . . . Sneak Attacks . | . . . . . . . Combat Hostiles . | . . . . . . . Follow-up Attacks . | . . . . . . . Damage Inflicted 49 | . . 49 . . . . Guns . | . . . . . . . Cannons . | . . . . . . . Explosions . | . . . . . . . Melee . | . . . . . . . Ramming 49 | . . 49 . . . . Kinetic . | . . . . . . . Thermal . | . . . . . . . Explosive . | . . . . . . . Electromagnetic . | . . . . . . . Impact . | . . . . . . . Slashing . | . . . . . . . Piercing . | . . . . . . . Highest Corruption 2 | . . 2 . . . . Average Corruption 2 | . . 2 . . . . Corruption Purged . | . . . . . . . Corruption Blocked . | . . . . . . . Overload Shots . | . . . . . . . Overflow Damage . | . . . . . . . Projectiles . | . . . . . . . Explosions . | . . . . . . . Melee . | . . . . . . . Knockbacks . | . . . . . . . Impact . | . . . . . . . Kinetic . | . . . . . . . Secondary . | . . . . . . . Self-Inflicted Damage 22 | . . 22 . . . . Shots . | . . . . . . . Rammed 13 | . . 13 . . . . Targets Rammed 13 | . . 13 . . . . Kicked . | . . . . . . . Crushed . | . . . . . . . Highest Temperature . | . . . . . . . Average Temperature . | . . . . . . . Received Heat Transfer 249 | . 24 81 54 . . 90 Siege Activations . | . . . . . . . Robots Corrupted . | . . . . . . . Combat Hostiles . | . . . . . . . Parts Fried . | . . . . . . . Impact Corruptions . | . . . . . . . Robots Melted . | . . . . . . . Combat Hostiles . | . . . . . . . Parts Melted . | . . . . . . . Heat Transferred . | . . . . . . . Parts Sabotaged . | . . . . . . . Parts Stolen . | . . . . . . . Parts Stripped . | . . . . . . . Power Chain Reactions . | . . . . . . . Missiles Intercepted . | . . . . . . . Alert | -11 -10 -9 -8 -7 -7 -6 ------- Run | Jun Mat Mat Mat Fac DSF Fac Peak Influence 87 | . . 45 87 39 27 79 Initial 39 | . . . 18 39 27 14 Average 30 | . . 29 48 39 27 34 Maximum Alert Level . | . . . . . . . Low Security (%) 100 | 100 100 100 100 100 100 100 Level 1 . | . . . . . . . Level 2 . | . . . . . . . Level 3 . | . . . . . . . Level 4 . | . . . . . . . Level 5 . | . . . . . . . High Security . | . . . . . . . Max Security . | . . . . . . . Squads Dispatched 4 | . . . 3 . . 1 Investigation 2 | . . . 2 . . . Extermination . | . . . . . . . Reinforcement 2 | . . . 1 . . 1 Assault . | . . . . . . . Garrison . | . . . . . . . Intercept . | . . . . . . . Searches Triggered . | . . . . . . . Construction Impeded . | . . . . . . . Haulers Reinforced . | . . . . . . . Active Scanning Responses . | . . . . . . . Cargo Convoy Interrupts . | . . . . . . . Stealth | -11 -10 -9 -8 -7 -7 -6 --------- Run | Jun Mat Mat Mat Fac DSF Fac Distress Signals 3 | . 1 . 1 . . 1 Communications Jammed . | . . . . . . . Distress Signals . | . . . . . . . Times Spotted 30 | . 2 2 10 . . 16 Peak Tracking Total 13 | . 3 2 10 . 1 13 Tactical Retreats 2 | . . . . . . 2 Traps | -11 -10 -9 -8 -7 -7 -6 ------- Run | Jun Mat Mat Mat Fac DSF Fac Traps Triggered 5 | . 1 . 2 . . 2 Indirectly . | . . . . . . . Trap Hack Attempts . | . . . . . . . Triggered . | . . . . . . . Disarmed . | . . . . . . . Reprogrammed . | . . . . . . . Reused . | . . . . . . . Traps Extracted . | . . . . . . . Installed . | . . . . . . . Triggered . | . . . . . . . Machines | -11 -10 -9 -8 -7 -7 -6 ---------- Run | Jun Mat Mat Mat Fac DSF Fac Machines Disabled . | . . . . . . . Max in Single Turn . | . . . . . . . Machines Repaired . | . . . . . . . Machines Sabotaged . | . . . . . . . Overloaded Fab Kills . | . . . . . . . Hacking | -11 -10 -9 -8 -7 -7 -6 --------- Run | Jun Mat Mat Mat Fac DSF Fac Machines Accessed 4 | . 1 . 1 1 . 1 Terminals 4 | . 1 . 1 1 . 1 Fabricators . | . . . . . . . Repair Stations . | . . . . . . . Recycling Units . | . . . . . . . Scanalyzers . | . . . . . . . Garrison Access . | . . . . . . . Total Hacks 8 | . 2 . 3 1 . 2 Successful 2 | . . . 1 1 . . Failed 6 | . 2 . 2 . . 2 Catastrophic 3 | . 2 . 1 . . . Database Lockouts . | . . . . . . . Manual 5 | . . . 3 . . 2 Terminals 8 | . 2 . 3 1 . 2 Fabricators . | . . . . . . . Repair Stations . | . . . . . . . Recycling Units . | . . . . . . . Scanalyzers . | . . . . . . . Garrison Access . | . . . . . . . Terminal Hacks 2 | . . . 1 1 . . Open DSF 1 | . . . . 1 . . Level Access Points 1 | . . . 1 . . . Fabricator Hacks . | . . . . . . . Repair Station Hacks . | . . . . . . . Recycling Unit Hacks . | . . . . . . . Scanalyzer . | . . . . . . . Garrison Access Hacks . | . . . . . . . Unauthorized Hacks . | . . . . . . . Terminals . | . . . . . . . Fabricators . | . . . . . . . Repair Stations . | . . . . . . . Recycling Units . | . . . . . . . Scanalyzers . | . . . . . . . Garrison Access . | . . . . . . . Data Cores Recovered . | . . . . . . . Used . | . . . . . . . Hacking Detections 4 | . 1 . 1 1 . 1 Full Trace Events 2 | . 1 . 1 . . . Feedback Events . | . . . . . . . Feedback Blocked . | . . . . . . . Robot Schematics Acquired . | . . . . . . . Robots Built . | . . . . . . . Authchips . | . . . . . . . Time . | . . . . . . . Total Robot Build Rating . | . . . . . . . Part Schematics Acquired . | . . . . . . . Parts Built . | . . . . . . . Authchips . | . . . . . . . Time . | . . . . . . . Total Part Build Rating . | . . . . . . . Parts Repaired . | . . . . . . . Time . | . . . . . . . Parts Recycled . | . . . . . . . Recycled Matter . | . . . . . . . Retrieved Matter . | . . . . . . . Retrieved Components . | . . . . . . . Parts Scanalyzed . | . . . . . . . Part Schematics Acquired . | . . . . . . . Parts Damaged . | . . . . . . . Bothacking | -11 -10 -9 -8 -7 -7 -6 ------------ Run | Jun Mat Mat Mat Fac DSF Fac Used RIF Installer . | . . . . . . . Robots Hacked . | . . . . . . . Non-combat . | . . . . . . . Combat . | . . . . . . . Robot Hacks Applied . | . . . . . . . Relay Couplers Released . | . . . . . . . Fabnet Peak Effective % . | . . . . . . . Robots Rewired . | . . . . . . . Allies Hacked . | . . . . . . . Hacks Repelled . | . . . . . . . Allies | -11 -10 -9 -8 -7 -7 -6 -------- Run | Jun Mat Mat Mat Fac DSF Fac Total Allies . | . . . . . . . Largest Group . | . . . . . . . Highest-Rated Group . | . . . . . . . Highest-Rated Ally . | . . . . . . . Total Orders . | . . . . . . . Ally Attacks . | . . . . . . . Total Damage . | . . . . . . . Kills . | . . . . . . . Allies Corrupted . | . . . . . . . Allies Melted . | . . . . . . . Intel | -11 -10 -9 -8 -7 -7 -6 ------- Run | Jun Mat Mat Mat Fac DSF Fac Robot Analysis Total . | . . . . . . . Derelict Logs Recovered . | . . . . . . . Drone Launches . | . . . . . . . Drone Recoveries . | . . . . . . . Exploration | -11 -10 -9 -8 -7 -7 -6 ------------- Run | Jun Mat Mat Mat Fac DSF Fac Turns Passed 338 | 10 31 85 51 9 17 135 Spaces Moved 669 | 20 62 138 99 17 30 303 Core 411 | 20 62 138 99 17 30 45 Treads . | . . . . . . . Legs . | . . . . . . . Wheels . | . . . . . . . Hover . | . . . . . . . Flight 258 | . . . . . . 258 Fastest Speed 34 | 50 50 50 50 50 50 34 Average Speed 44 | 50 50 50 50 50 50 36 Slowest Speed 50 | 50 50 50 50 50 50 50 Overloaded Moves . | . . . . . . . Propulsion Burnouts . | . . . . . . . Robots Hopped 10 | . . . . . . 10 Cave-ins Triggered . | . . . . . . . Exploration Rate (%) 16 | 2 15 22 19 1 40 13 Regions Visited 6 Branch Regions . Pre-discovered Areas . | . . . . . . . Known Exits Taken 2 | . . . 1 1 . . Unknown Exits Taken 3 | 1 1 1 . . . . Scrap Searched . | . . . . . . . Spaces Dug . | . . . . . . . Terrain Destroyed . | . . . . . . . Melee . | . . . . . . . Projectile . | . . . . . . . AOE . | . . . . . . . Terrain Rammed . | . . . . . . . Walls Destroyed . | . . . . . . . Machines Disabled . | . . . . . . . Actions | -11 -10 -9 -8 -7 -7 -6 --------- Run | Jun Mat Mat Mat Fac DSF Fac Total 693 | 19 61 153 99 16 32 313 Wait 1 | . . . . . . 1 Move 646 | 19 61 137 98 16 29 286 Hop 7 | . . . . . . 7 Pick Up 5 | . . 3 1 . 1 . Fast Attach 6 | . . . . . . 6 Attach 1 | . . . . . 1 . Detach . | . . . . . . . Swap . | . . . . . . . Drop 1 | . . . . . 1 . Fire . | . . . . . . . Melee . | . . . . . . . Ram 13 | . . 13 . . . . Kick . | . . . . . . . Crush . | . . . . . . . Escape Stasis 13 | . . . . . . 13 Rewire . | . . . . . . . Trap . | . . . . . . . Miscellaneous . | . . . . . . . Route ------- -11/Junkyard -10/Materials -9/Materials -8/Materials (discovered 3 exits: *Fac x3) -7/Factory -7/DSF -6/Factory History --------- Turn | Location | Event 4 | -11/Junkyard | Discovered new exit (range 14) 11 | -11/Junkyard | Entered Materials 35 | -10/Materials | Discovered new exit (range 15) 42 | -10/Materials | Entered another Materials area 42 | -9/Materials | Evolved 2 slots: Propulsion x2 118 | -9/Materials | Core integrity fell below 50% 122 | -9/Materials | Discovered new exit (range 11) 127 | -9/Materials | Entered another Materials area 127 | -8/Materials | Evolved 2 slots: Propulsion x2 131 | -8/Materials | Identified exit to Factory 178 | -8/Materials | Entered Factory 178 | -7/Factory | Evolved 2 slots: Power x1, Utility x1 186 | -7/Factory | Identified exit to DSF 187 | -7/Factory | Entered DSF 199 | -7/DSF | Discovered new exit (range 11) 204 | -7/DSF | Identified exit to Factory 204 | -7/DSF | Entered Factory 204 | -6/Factory | Evolved 2 slots: Propulsion x1, Utility x1 309 | -6/Factory | Spotted B-75 Beast 318 | -6/Factory | Core integrity fell below 50% 325 | -6/Factory | Core integrity fell below 20% 339 | -6/Factory | Destroyed by S-27 Virus with Autogun Last Messages --------------- 00326_ Field strength at 76. 00327_ Field strength at 55. 00328_ Field strength at 38. 00329_ Field strength at 18. 00330_ Stasis field depleted. 00330_ Nuclear Pulse Thruster destroyed. 00330_ Triggered Stasis Trap. 00330_ A bubble of rippling energy engulfs the area. 00330_ Field strength at 94. 00330_ Field strength at 88. 00331_ Field strength at 78. 00332_ Field strength at 68. 00333_ Field strength at 57. 00334_ Field strength at 47. 00335_ Field strength at 36. 00336_ Field strength at 30. 00337_ Field strength at 21. 00338_ Field strength at 15. 00339_ Nuclear Pulse Thruster destroyed. 00339_ Stasis field depleted. Map ----- +----------------------------------------------------+ | ?????????????????????????????????????????????????? | | ?????????????????????????????????????????????????? | | ?????????????????????????????????????????????????? | | ?????????????????????????????????????????????????? | | ?????????????????????????????????????????????????? | | ?????????????????????????????????????????????????? | | ?????????????????????????????????????????????????? | | ?????????????????????????????????????????????????? | | ?????????????????????????????????????????????????? | | ?????????????????????????????????????????????????? | | ?????????????????????????????????????????????????? | | ?????????????????????????????????????????????????? | | ???????????????????????????????#?????????????????? | | ???????????????????????????? ??????????????? | | ???????????????????????????? #??????????????? | | ???????????????????????????? #??????????????? | | ???????????????????????????? ???????????????? | | ???????????????????????????# #???????????????? | | ???????????????????????????# #???????????????? | | ???????????????????????????# #???????????????? | | ???????????????????????????# #???????????????? | | ???????????????###?????????# #???????????????? | | ???????????????# ???????# ######??????????? | | ???????????????# ?????# #??????????? | | ???????????????# ! #### #??????????? | | ???????????????# %/@ % ""#??????????? | | ?????????? + u ##; u ""#??????????? | | ?????????? # """""???#; ""#??????????? | | ???????????????? """??????# T#??????????? | | ??????????????????????????# *** o""#??????????? | | ??????????????????????????# *** ""#??????????? | | ??????????????????????????# *** ""#??????????? | | ??????????????????????????#% #??????????? | | ??????????????????????????# #??????????? | | ??????????????????????????# !! w##?????????? | | ??????????????????????????# % !% #?????????? | | ??????????????????????????# ! s #?????????? | | ??????????????????????????# #?????????? | | ??????????????????????????# #???####??? | | ??????????????????????????# #####T #### | | ??????????????????????????####### # % # | | ????????????????????????????????# " # | | ????????????????????????????????###" # | | ??????????????????????????????????## # | | ?????????????????????????########### # | | ?????????????????????????# # | | ?????????????????????????# + | | ?????????????????????????# # | | ?????????????????????????# ################## ## | | ?????????????????????????# ?????? # #? | +----------------------------------------------------+ Best States ------------- Heat Dissipation 37 Energy Generation 5 Energy Capacity 100 Matter Stores 300 Matter Capacity 300 Sight Range 16 Terrain Scan Density 10 Evasion (%) 63 Item Schematics ----------------- None Robot Schematics ------------------ None Fabricated ------------ Nothing Alien Tech Used ----------------- None Achievements -------------- None Challenges ------------ None Game ------ Seed CoreDecoyBuckler Manual? 0 Play Time 00:07:00 Cumulative 153.7 hours Start 2023.04.27 @ 21:36:39 End 2023.04.27 @ 21:41:29 Sessions 1 Manual Loads 0 Difficulty Rogue Special Mode None Game No. 457 Rogue 457 Adventurer 0 Explorer 0 Win Type - Total 7 Types 6/0/0/1/0/0/0/0/0 Lore% 66 Gallery% 71 Achievement% 61 Wizard Run 0 Options --------- ASCII 0 Keyboard 0 Movement Numpad Keybinds 0 Fullscreen 1 Font 16/SmallcapsGlow Map View 75x55 Tactical HUD 1 Map Filters NONE Filters NONE Steam 1 RUN: f9350597-90ff-45ca-8857-0dcbd9f36070